bitfinex/quotes_BTCUSD_20250825
["timestamp","ask_amount","ask_price","bid_price","bid_amount"]
[1756160525709,0.04187002,110470.0,110460.0,0.68253101]
[1756160525942,0.06734414,110470.0,110460.0,0.68253101]
[1756160526288,0.06734415,110470.0,110460.0,0.68253101]
[1756160526514,0.06734583,110470.0,110460.0,0.68253101]
[1756160526736,0.06734894,110470.0,110460.0,0.68253101]
[1756160528133,0.03047892,110470.0,110460.0,0.68253101]
[1756160528606,0.02198586,110470.0,110460.0,0.72412206]
[1756160529050,0.02198526,110470.0,110460.0,0.72412206]
[1756160530355,0.005,110470.0,110460.0,0.72412206]
[1756160530573,0.04147884,110470.0,110460.0,0.72412206]
[1756160530791,0.04147884,110470.0,110460.0,0.56620206]
[1756160531008,0.005,110470.0,110460.0,0.72226206]
[1756160531234,0.005,110470.0,110460.0,0.72424206]
[1756160531686,0.005,110470.0,110460.0,0.72226206]
[1756160532375,0.005,110470.0,110460.0,0.72424206]
[1756160532836,0.005,110470.0,110460.0,0.71903206]
[1756160533056,0.005,110470.0,110460.0,0.72424206]
[1756160533523,0.04147965,110470.0,110460.0,0.72424206]
[1756160533791,0.005,110470.0,110460.0,0.71520206]
[1756160534499,0.005,110470.0,110460.0,0.71043206]
[1756160534722,0.005,110470.0,110460.0,0.71366206]
[1756160535169,0.005,110470.0,110460.0,0.71362206]
[1756160535884,0.005,110470.0,110460.0,0.71560206]
[1756160536106,0.01916689,110470.0,110460.0,0.71560206]
[1756160536755,0.05590076,110470.0,110460.0,0.71560206]
[1756160536971,0.01916689,110470.0,110460.0,0.71560206]
[1756160537821,0.05512986,110470.0,110460.0,0.71560206]
[1756160539322,0.01916689,110470.0,110460.0,0.71560206]
[1756160539559,0.01916689,110470.0,110460.0,0.80247171]
[1756160540200,0.01916689,110470.0,110460.0,0.71560206]
[1756160541566,0.05537305,110470.0,110460.0,0.71560206]
[1756160541784,0.05537305,110470.0,110460.0,0.71532206]
[1756160542218,0.05537305,110470.0,110460.0,0.71520206]
[1756160542902,0.05537305,110470.0,110460.0,0.55716206]
[1756160543080,0.05537305,110470.0,110460.0,0.71520206]
[1756160543829,0.05537305,110470.0,110460.0,0.55716206]
[1756160544391,0.05537305,110470.0,110460.0,0.71508206]
[1756160544801,0.04120616,110470.0,110460.0,0.71508206]
[1756160546072,0.19472591,110490.0,110470.0,0.18104462]
[1756160546284,0.21099751,110490.0,110480.0,0.15788]
[1756160546494,0.21099751,110490.0,110480.0,0.33890824]
[1756160546708,0.1952036,110490.0,110480.0,0.15788]
[1756160547764,0.1982036,110490.0,110480.0,0.15788]
[1756160548211,0.21636873,110490.0,110480.0,0.15788]
[1756160548627,0.21236873,110490.0,110480.0,0.15788]
[1756160549179,0.21636873,110490.0,110480.0,0.15788]
[1756160549393,0.25234109,110490.0,110480.0,0.15788]
[1756160550943,0.18102824,110480.0,110470.0,0.00297]
[1756160551153,0.18102824,110480.0,110470.0,0.34362462]
[1756160551377,0.18102824,110480.0,110470.0,0.33860462]
[1756160552261,0.18302824,110480.0,110470.0,0.34157462]
[1756160552481,0.18302824,110480.0,110470.0,0.33860462]
[1756160552718,0.18302824,110480.0,110470.0,0.34065462]
[1756160552944,0.18302824,110480.0,110470.0,0.34157462]
[1756160553169,0.18602824,110480.0,110470.0,0.34157462]
[1756160553790,0.18602824,110480.0,110470.0,0.34362462]
[1756160553940,0.18602824,110480.0,110470.0,0.25654737]
[1756160554142,0.18602824,110480.0,110470.0,0.41478737]
[1756160554920,0.18602824,110480.0,110470.0,0.18401462]
[1756160555076,0.18602824,110480.0,110470.0,0.34221462]
[1756160555281,0.18602824,110480.0,110470.0,0.34426462]
[1756160555484,0.18602824,110480.0,110470.0,0.34221462]
[1756160556516,0.005,110480.0,110470.0,0.34426462]
[1756160558121,0.005,110480.0,110470.0,0.18606462]
[1756160558244,0.005,110480.0,110470.0,0.34418462]
[1756160558663,0.21325524,110480.0,110470.0,0.34414462]
[1756160558863,0.005,110480.0,110470.0,0.18606462]
[1756160559058,0.005,110480.0,110470.0,0.34410462]
[1756160559702,0.18602824,110480.0,110470.0,0.34410462]
[1756160560043,0.005,110480.0,110470.0,0.34410462]
[1756160560938,0.18602824,110480.0,110470.0,0.34410462]
[1756160561409,0.18602824,110480.0,110470.0,0.34398462]
[1756160562776,0.21325524,110480.0,110470.0,0.34398462]
[1756160564919,0.032227,110480.0,110470.0,0.34398462]
[1756160565588,0.21325524,110480.0,110470.0,0.34398462]
[1756160566020,0.032227,110480.0,110470.0,0.34398462]
[1756160567135,0.032227,110480.0,110470.0,0.18606462]
[1756160567600,0.032227,110480.0,110470.0,0.34370462]
[1756160568453,0.032227,110480.0,110470.0,0.34362462]
[1756160571964,0.005,110480.0,110470.0,0.34362462]
[1756160577250,0.005,110480.0,110470.0,1.15927451]
[1756160577251,0.00175,110480.0,110470.0,1.15927451]
[1756160577454,0.00047769,110490.0,110470.0,1.15927451]
[1756160577455,0.00047769,110490.0,110480.0,0.18102824]
[1756160577667,0.00047769,110490.0,110480.0,0.18613824]
[1756160578121,0.01464028,110490.0,110480.0,0.18613824]
[1756160578639,0.01464028,110490.0,110480.0,0.18713824]
[1756160579112,0.01464028,110490.0,110480.0,0.34533824]
[1756160579566,0.01464028,110490.0,110480.0,0.37822152]
[1756160580189,0.00904895,110510.0,110500.0,0.18099547]
[1756160580447,0.00214322,110510.0,110500.0,0.40979547]
[1756160580645,0.22036057,110510.0,110500.0,0.40979547]
[1756160580843,0.18625231,110510.0,110500.0,0.40779547]
[1756160581065,0.18625231,110510.0,110500.0,0.22672]
[1756160581284,0.22714258,110510.0,110500.0,0.22668]
[1756160581507,0.18625231,110510.0,110500.0,0.40767547]
[1756160581742,0.18625231,110510.0,110500.0,0.06964]
[1756160581984,0.21347431,110510.0,110500.0,0.22676]
[1756160582218,0.25050823,110510.0,110500.0,0.06964]
[1756160582696,0.25050823,110510.0,110500.0,0.22672]
[1756160582950,0.59050823,110510.0,110500.0,0.06964]
[1756160583189,0.6074892,110510.0,110500.0,0.22676]
[1756160583428,0.61598004,110510.0,110500.0,0.22676]
[1756160584083,0.68863024,110510.0,110500.0,0.22676]
[1756160584312,0.69712125,110510.0,110500.0,0.22676]
[1756160584545,0.68863024,110510.0,110500.0,0.22676]
[1756160585230,0.6991214,110510.0,110500.0,0.22676]
[1756160586123,0.6094892,110510.0,110500.0,0.22676]
[1756160586337,0.61798048,110510.0,110500.0,0.22676]
[1756160586557,0.62365326,110510.0,110500.0,0.22676]
[1756160587194,0.62365326,110510.0,110500.0,0.2268]
[1756160587875,0.61852326,110510.0,110500.0,0.2268]
[1756160588165,0.61852326,110510.0,110500.0,0.41290547]
[1756160588166,0.0805632,110510.0,110500.0,0.41290547]
[1756160588417,0.26154229,110510.0,110500.0,0.41290547]
[1756160589103,0.0785632,110510.0,110500.0,0.41290547]
[1756160589355,0.0795632,110510.0,110500.0,0.41290547]
[1756160590035,0.26054229,110510.0,110500.0,0.41290547]
[1756160590465,0.30672324,110510.0,110500.0,0.23191]
[1756160590683,0.30672324,110510.0,110500.0,0.23195]
[1756160590898,0.30572324,110510.0,110500.0,0.23195]
[1756160591104,0.30672324,110510.0,110500.0,0.41394547]
[1756160591551,0.30572324,110510.0,110500.0,0.41394547]
[1756160591977,0.30372324,110510.0,110500.0,0.41394547]
[1756160592197,0.30572324,110510.0,110500.0,0.23279]
[1756160592414,0.30572324,110510.0,110500.0,0.41378547]
[1756160592618,0.25954229,110510.0,110500.0,0.41378547]
[1756160592823,0.0785632,110510.0,110500.0,0.41378547]
[1756160594575,0.25954229,110510.0,110500.0,0.41378547]
[1756160596183,0.25954229,110510.0,110500.0,0.45367771]
[1756160597893,0.25954229,110510.0,110500.0,0.44463771]
[1756160599221,0.25954229,110510.0,110500.0,0.53150736]
[1756160599222,0.0785632,110510.0,110500.0,0.53150736]
[1756160599443,0.0513412,110510.0,110500.0,0.53150736]
[1756160600348,0.0513412,110510.0,110500.0,0.80020736]
[1756160602525,0.00014322,110510.0,110500.0,0.71333771]
[1756160605367,0.00014322,110510.0,110500.0,0.93093771]
[1756160605809,0.01430354,110510.0,110500.0,0.93093771]
[1756160608461,0.01430354,110510.0,110500.0,0.93293771]
[1756160611369,0.01430354,110510.0,110500.0,0.77589771]
[1756160611580,0.01430354,110510.0,110500.0,0.93245771]
[1756160612981,0.00014322,110510.0,110500.0,0.86276736]
[1756160613191,0.00014322,110510.0,110500.0,1.01932736]
[1756160615908,0.00014322,110510.0,110500.0,0.93245771]
[1756160616373,0.0143034,110510.0,110500.0,0.77589771]
[1756160616592,0.0143034,110510.0,110500.0,0.93241771]
[1756160617859,0.0163034,110510.0,110500.0,0.93241771]
[1756160618064,0.0163034,110510.0,110500.0,0.9302776]
[1756160618884,0.0143034,110510.0,110500.0,0.9302776]
[1756160619095,0.0143034,110510.0,110500.0,1.01714725]
[1756160623651,0.0002,110520.0,110500.0,0.9302776]
[1756160623898,0.07127771,110540.0,110520.0,0.18096272]
[1756160624106,0.14950743,110540.0,110530.0,0.22612]
[1756160624356,0.12429243,110540.0,110530.0,0.22612]
[1756160625587,0.15150743,110540.0,110530.0,0.22612]
[1756160625838,0.15332743,110540.0,110530.0,0.22612]
[1756160626324,0.15341383,110540.0,110530.0,0.22612]
[1756160626842,0.15541383,110540.0,110530.0,0.22612]
[1756160627053,0.22309337,110540.0,110530.0,0.22612]
[1756160631326,0.15359383,110540.0,110530.0,0.40706634]
[1756160632424,0.15359383,110540.0,110530.0,0.22612]
[1756160633701,0.14454734,110540.0,110530.0,0.40706634]
[1756160635384,0.14254734,110540.0,110530.0,0.40907634]
[1756160635606,0.2632261,110540.0,110530.0,0.41212634]
[1756160636473,0.2632261,110540.0,110530.0,0.40706634]
[1756160636895,0.2632261,110540.0,110530.0,0.0696]
[1756160637140,0.2632261,110540.0,110530.0,0.22608]
[1756160637352,0.2650561,110540.0,110530.0,0.22608]
[1756160637800,0.2650561,110540.0,110530.0,0.0696]
[1756160638083,0.36068538,110540.0,110530.0,0.0696]
[1756160638522,0.70068538,110540.0,110530.0,0.22608]
[1756160639166,0.70068724,110540.0,110530.0,0.22608]
[1756160640024,0.70068781,110540.0,110530.0,0.22608]
[1756160640226,5.7091826,110540.0,110530.0,0.0696]
[1756160640460,5.7091826,110540.0,110530.0,0.22608]
[1756160640923,5.7091826,110540.0,110530.0,0.38718]
[1756160641361,5.69502227,110540.0,110530.0,0.38718]
[1756160643368,5.68652748,110540.0,110530.0,0.38718]
[1756160645820,5.68652748,110540.0,110530.0,0.38722]
[1756160647618,5.68652748,110540.0,110530.0,0.2307]
[1756160647751,5.68652748,110540.0,110530.0,0.38722]
[1756160647952,5.68651548,110540.0,110530.0,0.38722]
[1756160648164,5.68651548,110540.0,110530.0,0.31762]
[1756160648790,5.68651548,110540.0,110530.0,0.31758]
[1756160651097,5.68651548,110540.0,110530.0,0.1611]
[1756160651306,5.68651548,110540.0,110530.0,0.31762]
[1756160652198,5.68651548,110540.0,110530.0,0.1611]
[1756160652418,5.68651548,110540.0,110530.0,0.31762]
[1756160655456,5.81778021,110540.0,110530.0,0.1611]
[1756160655669,5.8262662,110540.0,110530.0,0.31762]
[1756160655867,5.79500147,110540.0,110530.0,0.31762]
[1756160656101,5.79300147,110540.0,110530.0,0.31762]
[1756160656534,5.79400147,110540.0,110530.0,0.31762]
[1756160657250,5.976437,110540.0,110530.0,0.1611]
[1756160657509,5.97643403,110540.0,110530.0,0.1611]
[1756160657999,5.8907443,110540.0,110530.0,0.1611]
[1756160658210,5.91796373,110540.0,110530.0,0.1611]
[1756160661229,5.98621957,110540.0,110530.0,0.1611]
[1756160662131,5.95495484,110540.0,110530.0,0.1611]
[1756160662370,5.95395484,110540.0,110530.0,0.1611]
[1756160662588,0.18094634,110530.0,110520.0,0.15648]
[1756160662814,5.29326958,110530.0,110520.0,0.15648]
[1756160663256,0.52096272,110520.0,110510.0,0.14518275]
[1756160663466,5.53793178,110520.0,110510.0,0.30378275]
[1756160665663,5.62736903,110520.0,110510.0,0.23406275]
[1756160666312,5.62736903,110520.0,110510.0,0.23720275]
[1756160666940,5.62736174,110520.0,110510.0,0.23720275]
[1756160670257,5.54818772,110520.0,110510.0,0.23720275]
[1756160670472,0.54818772,110520.0,110510.0,0.23720275]
[1756160678778,0.54818772,110520.0,110510.0,0.41818184]
[1756160678987,0.54818772,110520.0,110510.0,0.30684275]
[1756160682090,0.54818772,110520.0,110510.0,0.23431]
[1756160682299,0.54818772,110520.0,110510.0,0.07569]
[1756160682514,0.63807866,110520.0,110510.0,0.07264]
[1756160682938,0.63807866,110520.0,110510.0,0.22912]
[1756160683799,0.63807866,110520.0,110510.0,0.23436]
[1756160685736,0.63808878,110520.0,110510.0,0.23436]
[1756160686151,0.63808878,110520.0,110510.0,0.22912]
[1756160686813,0.63808878,110520.0,110510.0,0.23222]
[1756160687031,0.56517537,110520.0,110510.0,0.23436]
[1756160688590,0.22517537,110520.0,110510.0,0.23436]
[1756160689031,0.22517537,110520.0,110510.0,0.41533909]
[1756160689644,0.20818772,110520.0,110510.0,0.41533909]
[1756160690352,0.027225,110520.0,110510.0,0.41533909]
[1756160690563,0.527225,110520.0,110510.0,0.41533909]
[1756160690753,5.527225,110520.0,110510.0,0.41533909]
[1756160690963,0.027225,110520.0,110510.0,0.41533909]
[1756160691174,5.70818772,110520.0,110510.0,0.41533909]
[1756160691381,0.20818772,110520.0,110510.0,0.41533909]
[1756160691667,0.20818772,110520.0,110510.0,0.25885909]
[1756160691890,0.24710113,110520.0,110510.0,0.41533909]
[1756160692790,0.027225,110520.0,110510.0,0.41533909]
[1756160694003,0.027225,110520.0,110510.0,0.41433909]
[1756160694541,0.027225,110520.0,110510.0,0.41833909]
[1756160700377,0.027225,110520.0,110510.0,0.41829909]
[1756160709448,0.027225,110520.0,110510.0,0.26185909]
[1756160709657,0.027225,110520.0,110510.0,0.41825909]
[1756160711243,0.027225,110520.0,110510.0,0.26185909]
[1756160711423,0.027225,110520.0,110510.0,0.41825909]
[1756160715760,0.027225,110520.0,110510.0,0.49994036]
[1756160716002,0.027225,110520.0,110510.0,0.96520898]
[1756160716426,0.03599222,110540.0,110530.0,0.17190634]
[1756160716612,0.19042725,110550.0,110540.0,0.18092998]
[1756160716754,0.24407232,110550.0,110540.0,0.0696]
[1756160716955,0.24407232,110550.0,110540.0,0.07264]
[1756160717164,0.27128532,110550.0,110540.0,0.07469]
[1756160717785,0.27128532,110550.0,110540.0,0.07569]
[1756160718450,0.27128532,110550.0,110540.0,0.07669]
[1756160718702,0.27128532,110550.0,110540.0,0.07464]
[1756160718880,0.27128532,110550.0,110540.0,0.25761998]
[1756160720012,0.08120408,110550.0,110540.0,0.25761998]
[1756160720224,0.06423857,110550.0,110540.0,0.33015273]
[1756160721302,0.02755901,110550.0,110540.0,0.33015273]
[1756160722207,0.02755901,110550.0,110540.0,0.32915273]
[1756160722420,0.02755901,110550.0,110540.0,0.33015273]
[1756160722635,0.02755901,110550.0,110540.0,0.39599464]
[1756160723068,0.02430901,110550.0,110540.0,0.39599464]
[1756160723296,0.1916805,110580.0,110560.0,0.18088884]
[1756160723542,0.21460288,110580.0,110570.0,0.40680088]
[1756160723743,0.21658288,110580.0,110570.0,0.40680088]
[1756160724004,0.25419791,110580.0,110570.0,0.4658019]
[1756160724222,0.28140291,110580.0,110570.0,0.22592]
[1756160724868,0.28449291,110580.0,110570.0,0.22592]
[1756160725508,0.28140291,110580.0,110570.0,0.22592]
[1756160726330,0.28140291,110580.0,110570.0,0.22892]
[1756160726539,0.27503843,110580.0,110570.0,0.22592]
[1756160727726,0.27503843,110580.0,110570.0,0.41192088]
[1756160728151,0.27503843,110580.0,110570.0,0.23104]
[1756160728453,0.27305843,110580.0,110570.0,0.41192088]
[1756160728692,0.32185654,110580.0,110570.0,0.22604]
[1756160728894,0.32185654,110580.0,110570.0,0.0696]
[1756160729109,0.32185654,110580.0,110570.0,0.22604]
[1756160729322,0.32493654,110580.0,110570.0,0.22604]
[1756160729760,0.32493654,110580.0,110570.0,0.0696]
[1756160729983,0.32493654,110580.0,110570.0,0.226]
[1756160731299,0.32493654,110580.0,110570.0,0.21696]
[1756160731738,0.32493654,110580.0,110570.0,0.06056]
[1756160731966,0.33129152,110580.0,110570.0,0.06056]
[1756160732154,0.305855,110580.0,110570.0,0.21692]
[1756160732375,0.33127658,110580.0,110570.0,0.21692]
[1756160733011,0.33127663,110580.0,110570.0,0.21692]
[1756160733721,5.33127663,110580.0,110570.0,0.21684]
[1756160733938,5.35080243,110580.0,110570.0,0.21684]
[1756160735271,5.35080243,110580.0,110570.0,0.06056]
[1756160735483,5.35080243,110580.0,110570.0,0.21684]
[1756160737151,5.35080243,110580.0,110570.0,0.06056]
[1756160737370,5.35080243,110580.0,110570.0,0.21684]
[1756160738208,5.69080243,110580.0,110570.0,0.21684]
[1756160741659,5.66538087,110580.0,110570.0,0.21684]
[1756160741884,5.69082469,110580.0,110570.0,0.21684]
[1756160742087,5.64090555,110580.0,110570.0,0.21684]
[1756160742286,5.63892555,110580.0,110570.0,0.22196]
[1756160743099,5.64091555,110580.0,110570.0,0.22196]
[1756160743372,0.63892555,110580.0,110570.0,0.22196]
[1756160743572,0.61939975,110580.0,110570.0,0.40284088]
[1756160743806,0.6130399,110580.0,110570.0,0.22196]
[1756160744018,0.6130399,110580.0,110570.0,0.40284088]
[1756160744234,0.09210262,110580.0,110570.0,0.40284088]
[1756160744446,0.06666321,110580.0,110570.0,0.46846782]
[1756160744652,0.06666321,110580.0,110570.0,0.40284088]
[1756160745081,0.03945821,110580.0,110570.0,0.40284088]
[1756160746979,0.03945821,110580.0,110570.0,0.40384088]
[1756160747426,0.03945821,110580.0,110570.0,0.40484088]
[1756160748028,0.03945821,110580.0,110570.0,0.40560088]
[1756160748235,0.03945821,110580.0,110570.0,0.24856088]
[1756160748458,0.23916462,110580.0,110570.0,0.06768]
[1756160748667,0.23916462,110580.0,110570.0,0.40548088]
[1756160748877,0.03945821,110580.0,110570.0,0.40548088]
[1756160749092,0.22032274,110580.0,110570.0,0.40548088]
[1756160750409,0.22032274,110580.0,110570.0,0.2246]
[1756160750640,0.22032274,110580.0,110570.0,0.22472]
[1756160750858,0.22231274,110580.0,110570.0,0.06768]
[1756160751111,0.26567924,110580.0,110570.0,0.2216]
[1756160751323,0.26567924,110580.0,110570.0,0.06768]
[1756160751533,0.26567924,110580.0,110570.0,0.21948]
[1756160751747,0.26567924,110580.0,110570.0,0.2216]
[1756160751969,0.26567924,110580.0,110570.0,0.21948]
[1756160752184,0.26567924,110580.0,110570.0,0.2246]
[1756160752662,0.29288224,110580.0,110570.0,0.2246]
[1756160753217,0.29288224,110580.0,110570.0,0.40548088]
[1756160753433,0.24951574,110580.0,110570.0,0.40548088]
[1756160754057,0.24752574,110580.0,110570.0,0.40548088]
[1756160754569,0.06666121,110580.0,110570.0,0.40548088]
[1756160754778,0.24752574,110580.0,110570.0,0.40528088]
[1756160755774,0.06666121,110580.0,110570.0,0.40528088]
[1756160756645,0.06666121,110580.0,110570.0,0.40524088]
[1756160756755,0.24752574,110580.0,110570.0,0.24856088]
[1756160756958,0.24752574,110580.0,110570.0,0.40516088]
[1756160758629,0.23753119,110580.0,110570.0,0.40516088]
[1756160758859,0.05666666,110580.0,110570.0,0.40516088]
[1756160760925,0.23753119,110580.0,110570.0,0.40504088]
[1756160761134,0.05666666,110580.0,110570.0,0.24856088]
[1756160761340,0.23753119,110580.0,110570.0,0.40492088]
[1756160761549,0.23951119,110580.0,110570.0,0.40492088]
[1756160761959,0.23951119,110580.0,110570.0,0.40488088]
[1756160762382,0.02946366,110580.0,110570.0,0.40488088]
[1756160762602,0.20825112,110590.0,110570.0,0.40488088]
[1756160762794,0.18086453,110580.0,110570.0,0.40488088]
[1756160763213,0.20825112,110590.0,110570.0,0.40488088]
[1756160763411,0.18086453,110580.0,110570.0,0.24756088]
[1756160763835,0.2197761,110580.0,110570.0,0.24756088]
[1756160764053,0.18284453,110580.0,110570.0,0.06368]
[1756160764260,0.18284453,110580.0,110570.0,0.21784]
[1756160764475,0.21004953,110580.0,110570.0,0.21784]
[1756160764692,0.20806953,110580.0,110570.0,0.40374088]
[1756160764906,0.027205,110580.0,110570.0,0.40374088]
[1756160765140,0.06485436,110580.0,110570.0,0.40374088]
[1756160765350,0.027205,110580.0,110570.0,0.40374088]
[1756160765570,0.027205,110580.0,110570.0,0.40474088]
[1756160767449,0.0002,110590.0,110580.0,0.18086453]
[1756160767664,0.18104817,110590.0,110580.0,0.18588453]
[1756160768084,0.03773084,110590.0,110580.0,0.18588453]
[1756160768301,0.06493284,110590.0,110580.0,0.18588453]
[1756160769168,0.01493284,110590.0,110580.0,0.18588453]
[1756160769394,0.19578101,110590.0,110580.0,0.18588453]
[1756160772012,0.2322181,110590.0,110580.0,0.18588453]
[1756160772223,0.05136993,110590.0,110580.0,0.24424507]
[1756160772431,0.2322181,110590.0,110580.0,0.18588453]
[1756160772836,0.05136993,110590.0,110580.0,0.18588453]
[1756160773705,0.5332491,110610.0,110600.0,0.18083182]
[1756160773706,0.1901491,110610.0,110600.0,0.18083182]
[1756160773920,0.21559451,110610.0,110600.0,0.40667182]
[1756160774333,0.24279251,110610.0,110600.0,0.40667182]
[1756160774543,0.2802308,110610.0,110600.0,0.22584]
[1756160774745,0.2822108,110610.0,110600.0,0.40667182]
[1756160774952,0.2822108,110610.0,110600.0,0.41169182]
[1756160775174,0.2802308,110610.0,110600.0,0.41169182]
[1756160775395,0.0630837,110610.0,110600.0,0.41169182]
[1756160776664,0.24389917,110610.0,110600.0,0.41169182]
[1756160777111,0.0630837,110610.0,110600.0,0.41169182]
[1756160777556,0.24587917,110610.0,110600.0,0.41169182]
[1756160777783,0.24587917,110610.0,110600.0,0.25541182]
[1756160777999,0.24587917,110610.0,110600.0,0.41169182]
[1756160778217,0.24389917,110610.0,110600.0,0.41169182]
[1756160778659,0.2438978,110610.0,110600.0,0.41169182]
[1756160778892,0.24389506,110610.0,110600.0,0.41169182]
[1756160781055,0.24587506,110610.0,110600.0,0.41165182]
[1756160781240,0.24389506,110610.0,110600.0,0.41165182]
[1756160781700,0.24389506,110610.0,110600.0,0.25541182]
[1756160781919,0.24389506,110610.0,110600.0,0.41165182]
[1756160785747,0.21845376,110610.0,110600.0,0.25541182]
[1756160785970,0.21845376,110610.0,110600.0,0.41165182]
[1756160787121,0.22043376,110610.0,110600.0,0.06956]
[1756160787351,0.22043376,110610.0,110600.0,0.41159182]
[1756160787567,0.24762876,110610.0,110600.0,0.07452]
[1756160787759,0.24564876,110610.0,110600.0,0.41159182]
[1756160788004,0.24762876,110610.0,110600.0,0.23076]
[1756160788213,0.24762876,110610.0,110600.0,0.41159182]
[1756160788619,0.24564876,110610.0,110600.0,0.41159182]
[1756160788827,0.24564876,110610.0,110600.0,0.23076]
[1756160789249,0.24564876,110610.0,110600.0,0.41159182]
[1756160790726,0.26308661,110610.0,110600.0,0.06956]
[1756160790933,0.29327461,110610.0,110600.0,0.22576]
[1756160791370,0.25062176,110610.0,110600.0,0.22576]
[1756160792462,0.25062176,110610.0,110600.0,0.06956]
[1756160792694,0.25062176,110610.0,110600.0,0.22576]
[1756160795200,0.25062176,110610.0,110600.0,0.06956]
[1756160795410,0.25062176,110610.0,110600.0,0.22576]
[1756160795625,0.29377191,110610.0,110600.0,0.06056]
[1756160795839,0.29377191,110610.0,110600.0,0.21676]
[1756160796282,0.29377191,110610.0,110600.0,0.06056]
[1756160796487,0.29377191,110610.0,110600.0,0.21676]
[1756160797575,0.25062176,110610.0,110600.0,0.21676]
[1756160797782,0.24763176,110610.0,110600.0,0.21676]
[1756160798166,0.24763176,110610.0,110600.0,0.21879]
[1756160798375,0.24763176,110610.0,110600.0,0.22172]
[1756160799734,0.24763176,110610.0,110600.0,0.21676]
[1756160799972,0.29377191,110610.0,110600.0,0.21676]
[1756160800384,0.29078191,110610.0,110600.0,0.21676]
[1756160800601,0.29377191,110610.0,110600.0,0.06056]
[1756160800816,0.63377191,110610.0,110600.0,0.06056]
[1756160801026,0.63377191,110610.0,110600.0,0.21676]
[1756160802340,0.63078191,110610.0,110600.0,0.21676]
[1756160802564,0.58763176,110610.0,110600.0,0.21879]
[1756160802776,0.58565176,110610.0,110600.0,0.22172]
[1756160803009,0.58763176,110610.0,110600.0,0.21676]
[1756160803193,0.66478191,110610.0,110600.0,0.21676]
[1756160803612,0.58565176,110610.0,110600.0,0.22172]
[1756160803841,0.58763176,110610.0,110600.0,0.22172]
[1756160804068,0.58565176,110610.0,110600.0,0.22172]
[1756160804321,0.58763176,110610.0,110600.0,0.22172]
[1756160804545,0.66448291,110610.0,110600.0,0.22172]
[1756160804757,0.66250291,110610.0,110600.0,0.22172]
[1756160806498,0.66448291,110610.0,110600.0,0.22172]
[1756160807557,0.66250291,110610.0,110600.0,0.22172]
[1756160807991,0.58565176,110610.0,110600.0,0.40255182]
[1756160808581,0.58565176,110610.0,110600.0,0.06552]
[1756160808795,0.58763176,110610.0,110600.0,0.222]
[1756160809467,0.58763176,110610.0,110600.0,0.06056]
[1756160809654,0.59062176,110610.0,110600.0,0.217]
[1756160809861,0.66478191,110610.0,110600.0,0.217]
[1756160811162,0.66478191,110610.0,110600.0,0.22196]
[1756160811604,0.66478191,110610.0,110600.0,0.06056]
[1756160811812,0.66478191,110610.0,110600.0,0.2172]
[1756160812275,0.66478191,110610.0,110600.0,0.21923]
[1756160812486,0.66478191,110610.0,110600.0,0.22216]
[1756160812908,0.66478191,110610.0,110600.0,0.21716]
[1756160813530,0.66777191,110610.0,110600.0,0.21708]
[1756160813737,0.66777191,110610.0,110600.0,0.06056]
[1756160813962,0.66777191,110610.0,110600.0,0.21708]
[1756160814820,0.66478191,110610.0,110600.0,0.21708]
[1756160815273,0.66478191,110610.0,110600.0,0.22204]
[1756160815483,0.58763176,110610.0,110600.0,0.22204]
[1756160815693,0.58763176,110610.0,110600.0,0.21708]
[1756160817461,0.52747732,110610.0,110600.0,0.21708]
[1756160817877,0.52747732,110610.0,110600.0,0.2192]
[1756160818143,0.52747732,110610.0,110600.0,0.22225]
[1756160819013,0.52756732,110610.0,110600.0,0.22225]
[1756160819465,0.56467423,110610.0,110600.0,0.22225]
[1756160820341,0.56469423,110610.0,110600.0,0.22225]
[1756160820549,0.57453322,110610.0,110600.0,0.22225]
[1756160820756,0.56260423,110610.0,110600.0,0.40308182]
[1756160820983,0.56260423,110610.0,110600.0,0.22225]
[1756160822277,0.56467423,110610.0,110600.0,0.217]
[1756160822454,0.63952963,110610.0,110600.0,0.217]
[1756160822656,0.63952963,110610.0,110600.0,0.22217]
[1756160822657,0.63745963,110610.0,110600.0,0.22217]
[1756160822855,0.56260423,110610.0,110600.0,0.22217]
[1756160823314,0.22260423,110610.0,110600.0,0.40300182]
[1756160823520,0.22260423,110610.0,110600.0,0.40308182]
[1756160823726,0.22260423,110610.0,110600.0,0.22225]
[1756160823933,0.22260423,110610.0,110600.0,0.40308182]
[1756160825012,0.22260423,110610.0,110600.0,0.22225]
[1756160825222,0.22260423,110610.0,110600.0,0.22325]
[1756160826115,0.22260423,110610.0,110600.0,0.22425]
[1756160826977,0.24802413,110610.0,110600.0,0.22425]
[1756160827448,0.22260423,110610.0,110600.0,0.22425]
[1756160827866,0.22260423,110610.0,110600.0,0.22421]
[1756160829693,0.22467423,110610.0,110600.0,0.22421]
[1756160829979,0.22467423,110610.0,110600.0,0.21908]
[1756160830189,0.22767423,110610.0,110600.0,0.2192]
[1756160830402,0.22467423,110610.0,110600.0,0.2192]
[1756160830611,0.26084778,110610.0,110600.0,0.2192]
[1756160830830,0.24719138,110610.0,110600.0,0.22437]
[1756160831681,0.24719138,110610.0,110600.0,0.2192]
[1756160833038,0.24766854,110610.0,110600.0,0.2192]
[1756160834649,0.24766854,110610.0,110600.0,0.21908]
[1756160835495,0.29082337,110610.0,110600.0,0.06256]
[1756160835694,0.29082337,110610.0,110600.0,0.21904]
[1756160837473,0.29082337,110610.0,110600.0,0.22116]
[1756160837781,0.29082337,110610.0,110600.0,0.22421]
[1756160837914,0.29082337,110610.0,110600.0,0.21904]
[1756160838739,0.29082337,110610.0,110600.0,0.22421]
[1756160839867,0.29082337,110610.0,110600.0,0.21904]
[1756160840080,0.29082337,110610.0,110600.0,0.22421]
[1756160842153,0.29082337,110610.0,110600.0,0.06256]
[1756160842354,0.64231388,110610.0,110600.0,0.2188]
[1756160844161,0.6423143,110610.0,110600.0,0.2188]
[1756160845930,5.65929727,110610.0,110600.0,0.002]
[1756160846184,5.65929727,110610.0,110600.0,0.15824]
[1756160846785,0.52084817,110590.0,110580.0,0.14209275]
[1756160847020,0.59309764,110590.0,110580.0,0.30035275]
[1756160847231,0.59309764,110590.0,110580.0,0.30358275]
[1756160847649,0.62030264,110590.0,110580.0,0.29833275]
[1756160847857,0.62030264,110590.0,110580.0,0.14209275]
[1756160848065,0.62030264,110590.0,110580.0,0.29833275]
[1756160848546,0.62030264,110590.0,110580.0,0.14209275]
[1756160848994,0.62030264,110590.0,110580.0,0.29833275]
[1756160849215,0.62030264,110590.0,110580.0,0.29933275]
[1756160849657,0.62030264,110590.0,110580.0,0.30033275]